bitfinex-derivatives/quotes_ETHF0:USTF0_20241017
["timestamp","ask_amount","ask_price","bid_price","bid_amount"]
[1729165619765,0.38457,2601.0,2600.9,0.38456]
[1729165620163,0.96133,2601.2,2600.8,6.2078]
[1729165620363,0.38457,2600.9,2600.8,6.59238]
[1729165620559,0.38456,2601.1,2601.0,0.38455]
[1729165620766,1.198,2601.3,2600.8,7.16927]
[1729165620767,0.4092,2601.3,2600.8,7.16927]
[1729165620969,0.38454,2601.2,2601.1,0.38453]
[1729165621357,0.96133,2601.2,2600.8,3.2078]
[1729165621569,0.38457,2600.9,2600.8,3.59238]
[1729165621786,0.38457,2600.9,2600.8,0.38458]
[1729165622458,1.38407,2601.1,2600.7,0.78808]
[1729165622459,0.38459,2600.8,2600.7,0.78808]
[1729165622664,0.38459,2600.8,2600.7,0.7881]
[1729165623667,0.38459,2600.8,2600.7,0.4035]
[1729165624266,0.38462,2600.6,2600.5,3.2078]
[1729165624465,0.38462,2600.6,2600.5,3.59243]
[1729165625269,0.4188,2600.9,2600.5,7.0534]
[1729165625463,3.0,2601.7,2600.8,6.2078]
[1729165625766,1.1843,2601.6,2600.9,0.775]
[1729165625957,0.38456,2601.0,2600.9,1.15956]
[1729165626159,0.96129,2601.3,2600.9,0.387]
[1729165626360,0.38455,2601.1,2601.0,3.38455]
[1729165627076,3.2078,2601.4,2601.0,3.0]
[1729165627275,3.2078,2601.4,2601.2,3.0]
[1729165627576,0.38451,2601.3,2601.2,3.38452]
[1729165627963,0.38451,2601.4,2601.3,0.38451]
[1729165628165,0.3845,2601.5,2601.4,0.38449]
[1729165628473,0.7945,2601.6,2601.2,3.0]
[1729165628662,0.38451,2601.4,2601.3,0.38451]
[1729165629874,0.7945,2601.6,2601.2,3.0]
[1729165630068,0.38443,2601.9,2601.8,0.38443]
[1729165630468,0.38442,2602.0,2601.8,0.38443]
[1729165631174,0.8393,2602.2,2601.9,3.0]
[1729165631486,0.38441,2602.1,2602.0,0.38441]
[1729165632270,0.80259,2602.2,2602.1,0.3844]
[1729165632579,0.38439,2602.2,2602.1,0.3844]
[1729165632784,0.38437,2602.3,2602.2,0.38437]
[1729165633077,0.78045,2602.5,2602.4,0.38435]
[1729165633372,0.78045,2602.5,2602.1,4.78439]
[1729165633373,0.8244,2602.6,2602.1,3.8234]
[1729165633568,1.78522,2602.6,2602.1,3.399]
[1729165633768,0.38436,2602.4,2602.3,0.38435]
[1729165633969,0.38438,2602.3,2602.2,0.38437]
[1729165634571,0.38436,2602.4,2602.3,0.38435]
[1729165634765,0.8244,2602.6,2602.1,3.399]
[1729165634969,0.38438,2602.3,2602.2,0.38437]
[1729165635777,0.8244,2602.6,2602.4,0.38434]
[1729165635778,0.38434,2602.5,2602.4,0.38434]
[1729165635971,0.8244,2602.6,2602.5,0.38433]
[1729165635972,0.38433,2602.6,2602.5,0.38433]
[1729165636275,3.2078,2602.7,2602.3,3.0]
[1729165636574,3.2078,2602.7,2602.4,0.38434]
[1729165636575,0.38434,2602.5,2602.4,0.38434]
[1729165636775,0.38435,2602.4,2602.3,3.38436]
[1729165636979,3.2078,2602.7,2602.2,0.38438]
[1729165636980,0.38438,2602.3,2602.2,0.38438]
[1729165637372,3.2078,2602.7,2602.0,3.2078]
[1729165637572,0.3844,2602.1,2602.0,3.2078]
[1729165637775,0.38437,2602.3,2602.2,0.38438]
[1729165637974,0.38437,2602.3,2602.2,0.38437]
[1729165638681,0.4122,2602.6,2602.2,0.38437]
[1729165638877,0.38437,2602.3,2602.2,0.38437]
[1729165639580,0.4122,2602.6,2602.1,3.0]
[1729165639885,0.7742,2602.9,2602.4,3.0]
[1729165640181,0.77018,2602.9,2602.8,0.38429]
[1729165640381,0.77018,2602.9,2602.8,3.38429]
[1729165640382,0.38428,2602.9,2602.8,3.38429]
[1729165640582,0.4096,2603.2,2602.8,3.0]
[1729165640777,0.38428,2602.9,2602.8,3.38428]
[1729165642274,0.4096,2603.2,2602.7,0.4221]
[1729165642275,0.38429,2602.8,2602.7,0.4221]
[1729165642581,0.38429,2602.8,2601.4,1.62240418]
[1729165642582,0.96075,2602.8,2602.3,6.2078]
[1729165642786,0.38435,2602.4,2602.3,6.97895]
[1729165643283,0.38435,2602.4,2602.3,3.2078]
[1729165643479,0.38435,2602.4,2602.3,3.59217]
[1729165643874,1.2479,2602.7,2602.3,3.0]
[1729165644085,0.38428,2602.9,2602.8,0.38428]
[1729165644884,0.38427,2603.0,2602.9,0.38427]
[1729165645181,0.821,2603.2,2602.8,3.0]
[1729165645375,0.38426,2603.1,2603.0,0.38425]
[1729165645573,0.821,2603.2,2602.8,3.0]
[1729165645783,0.38428,2603.0,2602.9,0.38427]
[1729165645985,0.38427,2603.1,2603.0,0.38425]
[1729165646787,0.38428,2603.0,2602.9,0.38427]
[1729165647390,0.821,2603.2,2602.8,3.0]
[1729165647581,0.38426,2603.1,2603.0,0.38425]
[1729165648588,0.38428,2603.0,2602.9,0.38427]
[1729165649593,0.38428,2602.9,2602.8,3.38428]
[1729165650292,0.38428,2602.9,2602.8,3.0]
[1729165650592,0.38429,2602.8,2602.7,4.3856]
[1729165650786,0.96067,2603.0,2602.7,3.2078]
[1729165650984,0.38429,2602.8,2602.7,3.2078]
[1729165651187,0.38432,2602.6,2602.5,3.0]
[1729165651393,0.38434,2602.5,2602.4,3.59214]
[1729165651694,0.38433,2602.6,2602.5,0.38433]
[1729165653089,0.4012,2602.6,2602.3,3.8225]
[1729165653294,0.4012,2602.6,2602.3,0.8225]
[1729165653295,0.827,2602.6,2602.3,0.8225]
[1729165653597,0.38435,2602.5,2602.4,0.38435]
[1729165654794,0.827,2602.6,2602.3,3.8225]
[1729165654997,0.38435,2602.4,2602.3,4.20686]
[1729165656402,1.78782,2602.6,2602.2,0.38438]
[1729165656601,0.38437,2602.3,2602.2,0.38438]
[1729165657191,0.38435,2602.5,2602.4,0.38434]
[1729165658095,0.38435,2602.5,2602.4,0.77354]
[1729165658297,1.21133,2602.6,2602.5,0.38434]
[1729165658495,0.827,2602.6,2602.4,0.3892]
[1729165658700,0.38434,2602.5,2602.4,0.77354]
[1729165658998,0.38434,2602.5,2602.2,1.35055]
[1729165658999,0.38437,2602.3,2602.2,0.77397]
[1729165659200,0.38438,2602.2,2602.1,3.98138]
[1729165659419,0.38438,2602.2,2602.1,3.2078]
[1729165659606,4.22758,2602.2,2602.1,3.2078]
[1729165659907,0.38446,2601.7,2601.6,3.6207]
[1729165660115,0.96112,2601.8,2601.2,3.0]
[1729165660408,0.38451,2601.3,2601.2,3.38452]
[1729165660615,0.418,2601.6,2601.2,3.0]
[1729165660810,0.38453,2601.2,2601.1,4.0099]
[1729165661011,0.38453,2601.2,2601.1,4.39444]
[1729165661205,0.38452,2601.3,2601.1,4.39444]
[1729165661408,0.7934,2601.5,2601.1,4.39444]
[1729165661611,0.38453,2601.2,2601.1,4.0099]
[1729165661806,0.38453,2601.2,2601.1,3.2078]
[1729165662512,0.38453,2601.2,2601.1,3.59234]
[1729165662722,0.38452,2601.3,2601.1,3.2078]
[1729165663017,0.38452,2601.3,2601.1,3.59234]
[1729165663213,0.38452,2601.3,2601.1,0.38454]
[1729165663410,0.38453,2601.2,2601.1,0.38454]
[1729165663611,0.38453,2601.2,2601.1,3.59234]
[1729165665419,0.38452,2601.3,2601.2,0.38453]
[1729165665610,0.38451,2601.4,2601.3,0.38451]
[1729165665811,0.3845,2601.4,2601.3,0.78141]
[1729165666415,0.4024,2601.5,2601.2,3.0]
[1729165666917,0.38451,2601.4,2601.3,0.38451]
[1729165667122,0.38451,2601.3,2601.2,3.38452]
[1729165667707,0.38451,2601.3,2601.2,3.38453]
[1729165669623,0.38451,2601.4,2601.3,0.3845]
[1729165669824,0.7869,2601.5,2601.4,0.3845]
[1729165670026,0.38447,2601.7,2601.6,0.38446]
[1729165671511,0.4001,2601.9,2601.6,3.0]
[1729165671713,0.78455,2601.9,2601.8,0.38444]
[1729165671920,0.38445,2601.9,2601.8,3.38444]
[1729165672315,0.38445,2601.9,2601.8,3.79804]
[1729165672625,0.38441,2602.1,2602.0,0.3844]
[1729165672816,0.3844,2602.1,2602.0,0.3844]
[1729165674021,0.38444,2601.8,2601.7,3.2078]
[1729165674233,1.35783,2602.0,2601.5,3.4204]
[1729165674423,0.79327,2601.7,2601.6,0.38446]
[1729165674730,0.38447,2601.6,2601.5,3.80488]
[1729165675715,0.38447,2601.6,2601.5,3.4204]
[1729165676022,0.38447,2601.6,2601.5,3.80488]
[1729165677521,0.38447,2601.6,2601.5,3.4204]
[1729165677716,0.38447,2601.6,2601.5,0.4204]
[1729165677930,0.38448,2601.5,2601.4,3.2078]
[1729165680624,0.38448,2601.5,2601.4,3.5923]
[1729165681228,0.79327,2601.7,2601.6,0.38447]
[1729165681523,0.4088,2601.7,2601.4,3.2078]
[1729165681729,0.79327,2601.7,2601.6,0.38447]
[1729165682331,0.38448,2601.6,2601.5,0.38447]
[1729165683529,0.4088,2601.7,2601.4,3.2078]
[1729165683726,0.79327,2601.7,2601.6,0.38447]
[1729165683922,0.38447,2601.7,2601.6,0.38447]
[1729165684429,0.38448,2601.6,2601.5,0.38447]
[1729165684822,0.38448,2601.5,2601.4,3.59229]
[1729165685026,0.38448,2601.5,2601.4,3.2078]
[1729165685733,0.38448,2601.5,2601.4,3.5923]
[1729165686423,0.38448,2601.6,2601.5,0.38447]
[1729165687334,0.96112,2601.8,2601.4,3.2078]
[1729165687527,0.38448,2601.5,2601.4,3.59229]
[1729165688032,0.38447,2601.7,2601.6,0.38446]
[1729165689740,0.38448,2601.5,2601.4,3.59229]
[1729165689926,0.38448,2601.5,2601.4,3.2078]
[1729165690129,0.38448,2601.5,2601.4,0.3845]
[1729165690324,0.3845,2601.4,2601.3,0.7739]
[1729165690532,0.38451,2601.3,2601.2,0.80012]
[1729165691039,0.38451,2601.4,2601.3,0.38451]
[1729165691430,0.38451,2601.3,2601.2,0.80012]
[1729165694531,0.8055,2601.5,2601.2,0.80012]
[1729165694735,0.38451,2601.4,2601.3,0.38451]
[1729165694935,0.8055,2601.5,2601.2,0.4156]
[1729165695139,0.38451,2601.4,2601.3,0.3845]
[1729165695636,0.8055,2601.5,2601.2,0.4156]
[1729165695823,0.96115,2601.7,2601.2,0.4156]
[1729165695824,0.38447,2601.7,2601.6,0.38446]
[1729165696435,0.38449,2601.6,2601.5,0.38448]
[1729165696835,0.96111,2601.8,2601.4,0.38449]
[1729165696836,0.3845,2601.5,2601.4,0.38449]
[1729165697032,0.38447,2601.7,2601.6,0.38446]
[1729165698540,0.38448,2601.6,2601.5,0.38447]
[1729165698841,0.96112,2601.8,2601.4,3.2078]
[1729165698842,0.38448,2601.5,2601.4,3.59229]
[1729165699039,0.79168,2601.5,2601.4,3.59229]
[1729165700742,0.79168,2601.5,2601.4,3.2078]
[1729165701537,0.4072,2601.5,2601.3,0.3845]
[1729165701745,0.3845,2601.4,2601.3,3.5923]
[1729165702636,0.3845,2601.4,2601.3,0.3845]
[1729165702940,0.38448,2601.6,2601.5,0.38447]
[1729165703137,4.55768,2601.9,2601.3,3.2078]
[1729165703332,0.38446,2601.7,2601.6,0.38445]
[1729165705045,3.5966,2601.9,2601.4,0.96126]
[1729165705345,0.38446,2601.8,2601.7,0.38444]
[1729165705743,0.3888,2601.9,2601.8,0.38444]
[1729165706040,0.38439,2602.2,2602.1,0.3844]
[1729165706438,0.38442,2602.0,2601.9,0.38441]
[1729165706637,0.38444,2601.9,2601.8,0.38443]
[1729165707541,0.4265,2602.3,2601.8,3.0]
[1729165707741,0.4265,2602.3,2602.2,0.38438]
[1729165707742,0.81088,2602.3,2602.2,0.38438]
[1729165708137,7.16857,2602.8,2602.0,3.8257]
[1729165708333,0.38435,2602.5,2602.4,0.38434]
[1729165709043,0.38437,2602.4,2602.3,0.38436]
[1729165709835,0.38435,2602.6,2602.5,0.38432]
[1729165710340,0.38435,2602.6,2602.5,0.38434]
[1729165711437,0.38435,2602.6,2602.5,0.77834]
[1729165715345,0.38435,2602.6,2602.5,0.394]
[1729165716042,0.38435,2602.6,2602.5,0.77834]
[1729165716239,0.38435,2602.6,2602.5,0.394]
[1729165716641,0.38435,2602.6,2602.5,0.77834]
[1729165716838,0.38432,2602.8,2602.7,0.38429]
[1729165717254,0.4095,2603.1,2602.6,0.3935]
[1729165717552,0.38429,2602.9,2602.8,0.38428]
[1729165717945,1.37014,2603.1,2602.6,0.3935]
[1729165718141,0.38431,2602.7,2602.6,0.3935]
[1729165718355,0.38434,2602.5,2602.4,3.59214]
[1729165718941,0.38434,2602.5,2602.4,3.2078]
[1729165719144,3.3872,2602.6,2602.1,4.00969]
[1729165719452,0.38438,2602.2,2602.1,4.00969]
[1729165719949,0.38438,2602.2,2602.1,3.6253]
[1729165722956,0.38438,2602.2,2602.1,4.0097]
[1729165723460,0.38438,2602.2,2602.1,0.8019]
[1729165723851,0.38438,2602.2,2602.1,0.4175]
[1729165727857,46.10884,2602.6,2601.8,6.2078]
[1729165728067,0.38443,2601.9,2601.8,3.97773]
[1729165728264,0.38443,2601.9,2601.8,3.5933]
[1729165728758,0.38448,2601.5,2601.4,3.411]
[1729165729059,0.38448,2601.5,2601.4,0.4113]
[1729165729453,0.38448,2601.5,2601.2,0.77002]
[1729165729454,0.38451,2601.3,2601.2,0.77002]
[1729165729649,0.38451,2601.3,2601.2,0.7968]
[1729165729962,0.38451,2601.3,2601.2,1.18133]
[1729165730462,0.38451,2601.4,2601.3,0.3845]
[1729165730647,0.4113,2601.5,2601.2,1.18132]
[1729165730648,0.38451,2601.3,2601.2,1.18132]
[1729165734458,0.38451,2601.4,2601.3,0.3845]
[1729165734657,0.38451,2601.4,2601.2,0.7968]
[1729165734658,0.7958,2601.5,2601.4,0.3845]
[1729165734959,0.4113,2601.5,2601.2,0.7968]
[1729165735161,0.38451,2601.3,2601.2,1.18132]
[1729165735963,0.38451,2601.4,2601.3,0.3845]
[1729165736160,0.4113,2601.5,2601.2,0.7968]
[1729165736362,0.38451,2601.3,2601.2,1.18132]
[1729165736754,0.38451,2601.3,2601.2,0.7968]
[1729165737361,0.79501,2601.3,2601.2,0.7968]
[1729165737755,0.4105,2601.3,2601.0,3.2078]
[1729165738075,0.38454,2601.1,2601.0,3.59235]
[1729165738865,0.38454,2601.2,2601.1,0.38453]
[1729165743860,0.38454,2601.2,2601.0,3.2078]
[1729165743861,0.38454,2601.1,2601.0,3.2078]
[1729165744065,0.3846,2600.7,2600.6,3.59241]
[1729165744268,0.3846,2600.7,2600.6,3.2078]
[1729165744959,0.38462,2600.6,2600.5,0.38463]
[1729165745160,0.8054,2600.8,2600.1,3.2078]
[1729165745360,0.8054,2600.8,2600.3,0.38464]
[1729165745361,0.38466,2600.4,2600.3,0.38464]
[1729165745862,0.38468,2600.2,2600.1,4.42069]
[1729165746068,0.80218,2600.3,2600.2,0.38468]
[1729165746757,0.4175,2600.3,2600.2,0.38468]
[1729165746964,0.3873,2600.8,2600.2,3.0]
[1729165747160,0.4175,2600.7,2600.2,3.0]
[1729165747364,0.38465,2600.5,2600.4,0.38464]
[1729165748855,0.38463,2600.6,2600.5,0.38462]
[1729165749058,0.80211,2600.7,2600.6,0.38462]
[1729165749269,0.80211,2600.7,2600.6,0.81112]
[1729165749564,0.80211,2600.7,2600.6,1.20062]
[1729165749776,3.59238,2600.9,2600.8,0.38459]
[1729165750064,3.59237,2600.9,2600.8,0.38459]
[1729165750264,0.386,2601.0,2600.6,1.77755]
[1729165750569,0.77057,2601.0,2600.9,0.38457]
[1729165754374,0.3846,2600.8,2600.7,0.38458]
[1729165754574,0.38463,2600.5,2600.4,3.59243]
[1729165754964,0.38463,2600.5,2600.4,3.2078]
[1729165755265,0.38463,2600.5,2600.0,0.2]
[1729165755266,0.38469,2600.1,2600.0,0.2]
[1729165755770,16.0542,2600.1,2599.8,0.06790621]
[1729165755977,0.38472,2599.9,2599.8,0.06790621]
[1729165756166,3.0,2599.9,2599.4,3.2078]
[1729165756368,0.38478,2599.5,2599.4,3.2078]
[1729165756568,4.23198,2599.5,2599.4,3.2078]
[1729165756769,10.23198,2599.5,2599.4,3.2078]
[1729165757279,10.23198,2599.5,2598.8,3.4251]
[1729165757280,9.8472,2599.5,2598.8,3.4251]
[1729165757481,9.8472,2599.5,2598.4,3.2078]
[1729165757482,3.0,2598.9,2598.4,3.2078]
[1729165757771,6.2078,2598.7,2597.6,6.2078]
[1729165757964,3.6184,2598.8,2598.4,3.0]
[1729165758163,3.6184,2598.8,2597.7,1.3854]
[1729165758164,3.59264,2599.1,2598.7,0.38489]
[1729165758364,0.38486,2599.0,2598.5,3.59273]
[1729165758672,3.2078,2599.1,2598.6,0.3849]
[1729165758882,3.2078,2599.1,2598.7,0.3849]
[1729165759176,0.4206,2599.3,2598.6,3.0]
[1729165759376,0.4206,2599.3,2598.7,0.3849]
[1729165759569,0.4206,2599.3,2598.6,3.0]
[1729165759570,0.80542,2599.3,2598.8,0.38488]
[1729165759763,0.80542,2599.3,2598.6,3.0]
[1729165760077,3.2078,2599.4,2598.8,6.2078]
[1729165760273,3.2078,2599.4,2599.2,0.38482]
[1729165760469,0.4106,2599.5,2598.9,0.3993]
[1729165760666,3.5926,2599.4,2599.0,0.38485]
[1729165760871,0.38481,2599.3,2598.9,0.78416]
[1729165761174,0.38482,2599.3,2598.9,0.3993]
[1729165761374,3.2078,2599.4,2598.9,0.3993]
[1729165761570,0.38482,2599.3,2598.9,0.78416]
[1729165761770,3.2078,2599.4,2598.9,0.3993]
[1729165762076,0.38481,2599.3,2599.0,0.38485]
[1729165762266,0.38481,2599.3,2598.9,0.38486]
[1729165762466,0.78552,2599.3,2598.8,3.2078]
[1729165762774,0.4007,2599.3,2599.1,0.38483]
[1729165763176,0.4007,2599.3,2599.2,0.38482]
[1729165763381,3.2078,2599.4,2599.3,0.38481]
[1729165763576,3.0,2599.8,2599.3,0.3848]
[1729165763577,0.38477,2599.6,2599.3,0.3848]
[1729165763779,3.2078,2599.7,2599.2,0.3978]
[1729165764078,3.2078,2599.7,2599.0,0.38485]
[1729165764079,0.38482,2599.3,2599.0,0.38485]
[1729165764378,3.0,2599.5,2599.0,0.38485]
[1729165764579,3.0,2599.1,2599.0,0.38485]
[1729165764787,6.2078,2599.1,2598.6,0.4063]
[1729165764978,6.2078,2599.1,2598.4,0.3893]
[1729165764979,3.0,2598.8,2598.4,0.3893]
[1729165765273,3.38489,2598.8,2598.5,0.38491]
[1729165765474,3.0,2598.8,2598.2,0.4063]
[1729165765674,3.0,2598.8,2598.5,0.38492]
[1729165765873,0.3849,2598.7,2598.4,0.38493]
[1729165766073,0.38491,2598.7,2598.3,3.2078]
[1729165766378,3.2078,2598.8,2598.3,0.38495]
[1729165766579,3.0,2598.6,2598.2,0.79127]
[1729165766780,0.38495,2598.4,2598.2,0.79126]
[1729165766971,6.0,2598.3,2597.4,3.2078]
[1729165767279,7.0566,2598.5,2597.4,3.59289]
[1729165767280,3.0,2597.5,2597.4,3.59289]
[1729165767483,0.38502,2597.9,2597.6,0.38505]
[1729165767684,0.38502,2597.9,2597.7,0.38505]
[1729165767877,3.0,2598.0,2597.4,3.2078]
[1729165768085,3.0,2597.5,2597.4,3.59289]
[1729165768371,3.0,2597.5,2597.2,0.4041]
[1729165768372,3.38508,2597.5,2597.2,0.38511]
[1729165768680,3.0,2597.5,2597.0,3.6053]
[1729165768876,3.0,2597.5,2597.0,4.56818]
[1729165769082,3.0,2597.7,2597.6,0.38505]
[1729165769382,3.0,2597.7,2597.5,0.38507]
[1729165769577,3.0,2597.6,2597.5,0.38507]
[1729165769774,3.0,2597.6,2597.1,3.2078]
[1729165770081,3.0,2597.6,2597.0,1.36036]
[1729165770082,3.0,2597.9,2597.2,3.2078]
[1729165770283,3.0,2597.9,2597.2,4.17058]
[1729165770489,3.0,2597.9,2597.6,0.38506]
[1729165770685,4.125,2598.3,2597.5,3.2078]
[1729165770872,3.0,2598.1,2598.0,0.38499]
[1729165771584,3.0,2598.1,2597.9,0.38501]
[1729165771785,3.0,2598.0,2597.7,0.4177]
[1729165772086,3.0,2598.0,2597.9,0.38502]
[1729165772478,3.0,2598.0,2597.7,0.4177]
[1729165772681,3.0,2598.0,2597.8,0.38502]
[1729165772876,3.0,2598.0,2597.9,0.38502]
[1729165774777,3.0,2598.0,2597.9,3.59282]
[1729165774977,3.0,2598.0,2597.5,3.2078]
[1729165775177,3.0,2598.0,2597.9,0.38502]
[1729165775487,3.0,2598.0,2597.9,3.59282]
[1729165776283,3.0,2598.0,2597.9,0.38502]
[1729165777374,6.8488,2598.0,2597.9,0.38502]
[1729165777576,7.2686,2598.0,2597.9,0.38502]
[1729165778487,13.2686,2598.0,2597.9,0.38502]
[1729165778688,7.2686,2598.0,2597.9,0.38502]
[1729165779783,3.4198,2598.0,2597.9,0.38502]
[1729165781587,3.0,2598.0,2597.9,0.38502]
[1729165782685,3.385,2598.0,2597.9,0.38502]
[1729165782991,3.0,2598.0,2597.9,0.38502]
[1729165786894,3.385,2598.0,2597.9,0.38502]
[1729165788893,7.2338,2598.0,2597.9,0.38502]
[1729165791291,13.2338,2598.0,2597.9,0.38502]
[1729165791788,0.80429,2598.1,2598.0,0.385]
[1729165792789,0.4193,2598.1,2598.0,0.385]
[1729165792992,4.17011,2598.6,2598.0,0.385]
[1729165792993,3.0,2598.5,2598.0,0.96251]
[1729165793196,0.38493,2598.5,2598.4,0.38493]
[1729165794193,0.38496,2598.4,2598.3,0.38495]
[1729165796297,3.0,2598.5,2598.2,3.2078]
[1729165796493,0.38496,2598.3,2598.2,3.59276]
[1729165798198,0.38496,2598.4,2598.3,0.38494]
[1729165798884,3.0,2598.5,2598.2,3.2078]
[1729165799094,0.38496,2598.3,2598.2,3.59277]
[1729165799496,3.0,2598.5,2598.2,3.2078]
[1729165799693,3.3849,2598.7,2598.5,0.38493]
[1729165799888,0.3849,2598.8,2598.7,0.38489]
[1729165800090,0.3849,2598.7,2598.6,0.8132]
[1729165800392,3.0,2598.7,2598.5,3.2078]
[1729165800592,0.8289,2598.6,2598.3,0.38495]
[1729165800797,0.38494,2598.4,2598.3,0.38495]
[1729165800999,0.38494,2598.4,2598.3,1.39196268]
[1729165801199,0.38494,2598.4,2598.3,0.38495]
[1729165801401,0.38494,2598.4,2598.3,1.39196268]
[1729165801802,0.8289,2598.6,2598.3,1.00701268]
[1729165802001,0.38491,2598.7,2598.6,0.3849]
[1729165803404,0.38488,2599.0,2598.9,0.38485]
[1729165803796,4.59381,2599.1,2598.7,0.4247]
[1729165803996,0.38488,2598.8,2598.7,0.4247]
[1729165804596,0.3849,2598.7,2598.6,0.3849]
[1729165807715,0.38489,2598.8,2598.7,0.38487]
[1729165808410,0.38489,2598.9,2598.8,0.38487]
[1729165809008,1.38603,2599.1,2598.6,0.3849]
[1729165809009,0.38491,2598.7,2598.6,0.3849]
[1729165809206,3.96221,2598.9,2598.5,3.601]
[1729165809518,0.38491,2598.6,2598.5,0.77811]
[1729165810409,3.96221,2598.9,2598.5,0.3932]
[1729165810717,0.38491,2598.7,2598.6,0.3849]
[1729165810920,1.81194,2599.1,2598.5,3.601]
[1729165811213,0.38491,2598.7,2598.6,0.3849]
[1729165811606,0.9622,2598.9,2598.5,0.3932]
[1729165811814,0.38491,2598.6,2598.5,0.77812]
[1729165815011,0.38491,2598.6,2598.5,0.3932]
[1729165815219,0.38491,2598.6,2598.2,3.2078]
[1729165815220,0.96231,2598.6,2598.2,3.2078]
[1729165815419,0.38496,2598.3,2598.2,3.2078]
[1729165816119,0.38496,2598.3,2598.2,3.59277]
[1729165816619,0.38496,2598.3,2598.2,3.2078]
[1729165816814,7.57935,2598.5,2598.1,0.8019]
[1729165817014,0.38497,2598.2,2598.1,1.18689]
[1729165817523,4.37155,2598.5,2598.1,0.8019]
[1729165817721,0.38497,2598.2,2598.1,1.18688]
[1729165818310,3.0,2598.3,2597.9,3.6283]
[1729165818510,0.385,2598.0,2597.9,3.59281]
[1729165818723,1.37156,2598.5,2597.9,6.2078]
[1729165819023,0.38498,2598.3,2598.2,0.38496]
[1729165820918,0.38494,2598.5,2598.4,0.38493]
[1729165822425,0.38494,2598.4,2598.3,0.3937]
[1729165822722,0.38499,2598.2,2598.1,0.38498]
[1729165822934,0.38499,2598.1,2598.0,0.79349]
[1729165823633,0.3976,2598.3,2598.1,0.38498]
[1729165823634,0.38499,2598.2,2598.1,0.38498]
[1729165823927,0.38499,2598.1,2598.0,0.4085]
[1729165824520,0.38499,2598.1,2598.0,0.7935]
[1729165825130,0.38499,2598.2,2598.1,0.38498]
[1729165826121,0.38493,2598.6,2598.5,0.38492]
[1729165826331,0.96218,2598.9,2598.5,3.2078]
[1729165826522,0.38491,2598.7,2598.6,0.80771]
[1729165826721,1.76376,2599.0,2598.6,0.4228]
[1729165827024,0.3849,2598.8,2598.7,0.38488]
[1729165829132,0.38488,2598.9,2598.8,0.38487]
[1729165830830,0.77197,2599.0,2598.9,0.38487]
[1729165831026,0.38487,2599.0,2598.9,0.38487]
[1729165831632,0.38484,2599.2,2599.1,0.38482]
[1729165832223,0.78742,2599.3,2599.2,0.38482]
[1729165833630,0.38481,2599.4,2599.0,0.96214]
[1729165833929,0.38481,2599.4,2598.9,4.37606]
[1729165833930,0.38481,2599.4,2599.3,0.38481]
[1729165835124,1.36453,2599.6,2599.1,3.6275]
[1729165835433,0.38482,2599.2,2599.1,0.4197]
[1729165835724,0.38482,2599.2,2599.1,0.80454]
[1729165835926,0.38482,2599.2,2599.1,0.4197]
[1729165836321,0.38482,2599.2,2599.1,0.80454]
[1729165837139,0.3848,2599.5,2599.4,0.38478]
[1729165837637,0.4026,2599.6,2599.2,0.4242]
[1729165837929,0.38481,2599.4,2599.3,0.3848]
[1729165839927,1.36453,2599.6,2599.2,0.4242]
[1729165840127,0.38481,2599.3,2599.2,0.80901]
[1729165840523,0.3848,2599.4,2599.3,0.38479]
[1729165840936,0.38478,2599.6,2599.5,0.38477]
[1729165842744,1.77414,2599.9,2599.5,6.2078]
[1729165842745,0.8123,2599.9,2599.5,6.2078]
[1729165843032,3.2078,2600.1,2599.6,0.3936]
[1729165843344,0.38472,2600.0,2599.9,0.38471]
[1729165843537,1.76827,2600.3,2599.8,3.2078]
[1729165843730,0.38471,2600.1,2600.0,0.38469]
[1729165844032,0.38471,2600.0,2599.9,0.77181]
[1729165844234,0.96171,2600.2,2599.6,3.3936]
[1729165844426,0.38475,2599.8,2599.7,0.38474]
[1729165845028,0.4117,2599.9,2599.6,3.3936]
[1729165845232,0.38475,2599.8,2599.7,0.38474]
[1729165845423,0.38475,2599.7,2599.6,3.77836]
[1729165845735,0.4117,2599.9,2599.6,3.3936]
[1729165846037,0.38475,2599.8,2599.7,0.38474]
[1729165846929,0.38475,2599.8,2599.6,3.3936]
[1729165846930,0.38472,2600.0,2599.9,0.38471]
[1729165847332,0.3949,2600.3,2599.8,7.16964]
[1729165847636,0.3949,2600.3,2599.9,0.8212]
[1729165847936,0.3949,2600.3,2600.1,0.38468]
[1729165847937,0.38469,2600.2,2600.1,0.38468]
[1729165848125,0.38471,2600.1,2600.0,0.38469]
[1729165848729,0.38474,2599.9,2599.6,4.35549]
[1729165849035,0.41,2600.0,2599.6,0.3936]
[1729165849235,0.38477,2599.6,2599.5,4.01637]
[1729165850345,0.41,2600.0,2599.5,16.4788]
[1729165850534,0.41,2600.0,2599.9,0.38472]
[1729165851337,4.37773,2600.4,2599.9,1.36181]
[1729165851338,0.4161,2600.4,2599.9,1.36181]
[1729165851540,0.3847,2600.2,2600.1,0.38467]
[1729165851743,0.3847,2600.2,2599.9,1.36181]
[1729165851744,0.38467,2600.3,2600.2,0.38466]